fUST/lending_fUST_20240918
["ID","MTS","AMOUNT","RATE_DAILY","PERIOD"]
[338427553,1726631442848,-500.0,0.00019178,2]
[338427554,1726631442857,-500.0,0.00019178,2]
[338427555,1726631442866,-500.0,0.00019178,2]
[338427556,1726631442876,-500.0,0.00019178,2]
[338427557,1726631442885,-500.0,0.00019178,2]
[338427558,1726631442894,-151.0,0.00019178,2]
[338427559,1726631442903,-500.0,0.00019178,2]
[338427560,1726631442914,-1185.24,0.00019178,2]
[338427561,1726631442924,-500.0,0.00019178,2]
[338427562,1726631442933,-1853.79,0.00019178,2]
[338427563,1726631442942,-1312.16,0.00019178,2]
[338427564,1726631442951,-1720.89,0.00019178,2]
[338427565,1726631442960,-568.5,0.00019178,2]
[338427566,1726631442969,-500.0,0.00019178,2]
[338427567,1726631442978,-500.0,0.00019178,2]
[338427568,1726631442987,-500.0,0.00019178,2]
[338427569,1726631442996,-1000.0,0.00019178,2]
[338427571,1726631443006,-500.0,0.00019178,2]
[338427573,1726631443018,-500.0,0.00019178,2]
[338427575,1726631443029,-1811.86,0.00019178,2]
[338427576,1726631443039,-151.0,0.00019178,2]
[338427577,1726631443048,-634.8,0.00019178,2]
[338427578,1726631443057,-1052.11,0.00019178,2]
[338427579,1726631443068,-1708.71,0.00019178,2]
[338427580,1726631443078,-500.0,0.00019178,2]
[338427581,1726631443088,-1254.62,0.00019178,2]
[338427582,1726631443098,-500.0,0.00019178,2]
[338427583,1726631443107,-1024.02,0.00019178,2]
[338427584,1726631443116,-500.0,0.00019178,2]
[338427585,1726631443126,-1774.87,0.00019178,2]
[338427586,1726631443136,-2333.28,0.00019178,2]
[338427587,1726631443146,-177.460438,0.00019178,2]
[338427588,1726631443156,-177.460438,0.00019178,2]
[338427589,1726631443176,-500.0,0.00019178,2]
[338427590,1726631443195,-500.0,0.00019178,2]
[338427591,1726631443214,-500.0,0.00019178,2]
[338427592,1726631443236,-500.0,0.00019178,2]
[338427593,1726631443257,-500.0,0.00019178,2]
[338427594,1726631443275,-151.0,0.00019178,2]
[338427595,1726631443294,-667.04,0.00019178,2]
[338427596,1726631443309,-808.81,0.00019178,2]
[338427597,1726631443327,-929.75,0.00019178,2]
[338427599,1726631443347,-505.23,0.00019178,2]
[338427601,1726631443365,-154.742121,0.00019178,2]
[338427603,1726631443378,-500.0,0.00019178,2]
[338427604,1726631443397,-500.0,0.00019178,2]
[338427605,1726631443413,-1651.69,0.00019178,2]
[338427606,1726631443428,-500.0,0.00019178,2]
[338427607,1726631443442,-3647.47,0.00019178,2]
[338427608,1726631443458,-3647.47,0.00019178,2]
[338427609,1726631443471,-3647.47,0.00019178,2]
[338427611,1726631443486,-550.79,0.00019178,2]
[338427612,1726631443500,-3647.47,0.00019178,2]
[338427614,1726631443515,-500.0,0.00019178,2]
[338427616,1726631443532,-3647.47,0.00019178,2]
[338427617,1726631443547,-732.73,0.00019178,2]
[338427618,1726631443563,-3647.47,0.00019178,2]
[338427619,1726631443577,-3647.47,0.00019178,2]
[338427620,1726631443592,-3647.47,0.00019178,2]
[338427621,1726631443607,-500.0,0.00019178,2]
[338427622,1726631443621,-3647.47,0.00019178,2]
[338427623,1726631443635,-3647.47,0.00019178,2]
[338427624,1726631443649,-3647.47,0.00019178,2]
[338427625,1726631443664,-3647.47,0.00019178,2]
[338427626,1726631443678,-3647.47,0.00019178,2]
[338427627,1726631443694,-3647.47,0.00019178,2]
[338427628,1726631443709,-3647.47,0.00019178,2]
[338427629,1726631443724,-3647.47,0.00019178,2]
[338427630,1726631443739,-3647.47,0.00019178,2]
[338427631,1726631443754,-3647.47,0.00019178,2]
[338427632,1726631443770,-3647.47,0.00019178,2]
[338427633,1726631443785,-500.98752862,0.00019178,2]
[338427634,1726631443800,-500.0,0.00019178,2]
[338427635,1726631443814,-3647.47,0.00019178,2]
[338427636,1726631443832,-3647.47,0.00019178,2]
[338427637,1726631443847,-3647.47,0.00019178,2]
[338427638,1726631443861,-3647.47,0.00019178,2]
[338427639,1726631443876,-3647.69948918,0.00019178,2]
[338427640,1726631443891,-500.0,0.00019178,2]
[338427641,1726631443906,-1821.72,0.00019178,2]
[338427642,1726631443921,-500.0,0.00019178,2]
[338427643,1726631443939,-1683.57,0.00019178,2]
[338427644,1726631443955,-500.0,0.00019178,2]
[338427645,1726631443969,-519.95334485,0.00019178,2]
[338427646,1726631443983,-500.0,0.00019178,2]
[338427647,1726631443999,-500.0,0.00019178,2]
[338427648,1726631444013,-2414.67,0.00019178,2]
[338427649,1726631444031,-500.0,0.00019178,2]
[338427650,1726631444046,-1397.1,0.00019178,2]
[338427651,1726631444061,-1206.26,0.00019178,2]
[338427652,1726631444076,-1202.26,0.00019178,2]
[338427653,1726631444091,-151.0,0.00019178,2]
[338427654,1726631444121,-227.97090615,0.00019178,2]
[338427655,1726631444138,-1821.65,0.00019178,2]
[338427656,1726631444178,-500.0,0.00019178,2]
[338427657,1726631444194,-151.354018,0.00019178,2]
[338427658,1726631444211,-151.0,0.00019178,2]
[338427659,1726631444226,-609.33,0.00019178,2]
[338427660,1726631444241,-500.0,0.00019178,2]
[338427661,1726631444258,-339.63620813,0.00019178,2]
[338427662,1726631444273,-2912.62,0.00019178,2]
[338427663,1726631444288,-500.0,0.00019178,2]
[338427664,1726631444304,-500.0,0.00019178,2]
[338427665,1726631444320,-500.0,0.00019178,2]
[338427666,1726631444336,-2583.13,0.00019178,2]
[338427667,1726631444352,-500.0,0.00019178,2]
[338427668,1726631444369,-772.98,0.00019178,2]
[338427669,1726631444384,-500.0,0.00019178,2]
[338427670,1726631444399,-562.44,0.00019178,2]
[338427671,1726631444414,-500.0,0.00019178,2]
[338427672,1726631444428,-1394.71,0.00019178,2]
[338427673,1726631444443,-500.0,0.00019178,2]
[338427674,1726631444459,-2467.8,0.00019178,2]
[338427675,1726631444474,-500.0,0.00019178,2]
[338427676,1726631444489,-2677.68,0.00019178,2]
[338427677,1726631444503,-500.0,0.00019178,2]
[338427678,1726631444516,-1268.18,0.00019178,2]
[338427679,1726631444525,-500.0,0.00019178,2]
[338427680,1726631444536,-1319.29,0.00019178,2]
[338427681,1726631444548,-1049.27,0.00019178,2]
[338427682,1726631444558,-500.0,0.00019178,2]
[338427683,1726631444567,-532.46,0.00019178,2]
[338427684,1726631444817,-500.0,0.00019178,2]
[338427685,1726631444848,-500.0,0.00019178,2]
[338427686,1726631444869,-2197.96,0.00019178,2]
[338427687,1726631444878,-619.33,0.00019178,2]
[338427688,1726631444887,-500.0,0.00019178,2]
[338427689,1726631444899,-500.0,0.00019178,2]
[338427690,1726631444910,-500.0,0.00019178,2]
[338427691,1726631444921,-187.40382213,0.00019178,2]
[338427695,1726631445846,-910.73617787,0.00019178,2]
[338427696,1726631445855,-151.0,0.00019178,2]
[338427697,1726631445865,-151.0,0.00019178,2]
[338427698,1726631445874,-1325.82,0.00019178,2]
[338427699,1726631445883,-582.14499176,0.00019178,2]
[338427700,1726631445893,-503.8,0.00019178,2]
[338427701,1726631445902,-500.0,0.00019178,2]
[338427702,1726631445913,-501.23356417,0.00019178,2]
[338427703,1726631445922,-500.0,0.00019178,2]
[338427704,1726631445933,-893.94,0.00019178,2]
[338427705,1726631445942,-500.0,0.00019178,2]
[338427707,1726631445952,-500.0,0.00019178,2]
[338427708,1726631445961,-739.63,0.00019178,2]
[338427709,1726631445970,-151.0,0.00019178,2]
[338427710,1726631445979,-500.0,0.00019178,2]
[338427711,1726631445989,-151.0,0.00019178,2]
[338427712,1726631445998,-500.0,0.00019178,2]
[338427713,1726631446008,-500.0,0.00019178,2]
[338427714,1726631446018,-1092.14,0.00019178,2]
[338427715,1726631446030,-500.0,0.00019178,2]
[338427716,1726631446042,-500.0,0.00019178,2]
[338427717,1726631446052,-500.0,0.00019178,2]
[338427718,1726631446063,-941.0,0.00019178,2]
[338427719,1726631446072,-500.0,0.00019178,2]
[338427720,1726631446081,-698.44,0.00019178,2]
[338427721,1726631446092,-500.0,0.00019178,2]
[338427722,1726631446102,-500.0,0.00019178,2]
[338427723,1726631446114,-2456.7,0.00019178,2]
[338427724,1726631446123,-2121.29,0.00019178,2]
[338427725,1726631446133,-2121.29,0.00019178,2]
[338427726,1726631446142,-2121.29,0.00019178,2]
[338427727,1726631446152,-2121.29,0.00019178,2]
[338427728,1726631446162,-2121.29,0.00019178,2]
[338427729,1726631446174,-500.0,0.00019178,2]
[338427730,1726631446183,-2121.29,0.00019178,2]
[338427731,1726631446193,-2121.29,0.00019178,2]
[338427732,1726631446202,-2121.29,0.00019178,2]
[338427733,1726631446212,-2121.29,0.00019178,2]
[338427734,1726631446222,-2121.29,0.00019178,2]
[338427735,1726631446232,-2121.29,0.00019178,2]
[338427736,1726631446242,-500.0,0.00019178,2]
[338427737,1726631446252,-2121.29,0.00019178,2]
[338427738,1726631446262,-2561.08,0.00019178,2]
[338427739,1726631446271,-2121.29,0.00019178,2]
[338427740,1726631446280,-2121.29,0.00019178,2]
[338427741,1726631446291,-151.0,0.00019178,2]
[338427742,1726631446300,-500.0,0.00019178,2]
[338427743,1726631446309,-2121.29,0.00019178,2]
[338427744,1726631446319,-2121.29,0.00019178,2]
[338427745,1726631446328,-500.0,0.00019178,2]
[338427746,1726631446339,-2121.29,0.00019178,2]
[338427747,1726631446348,-2121.29,0.00019178,2]
[338427748,1726631446358,-2121.29,0.00019178,2]
[338427749,1726631446367,-152.515743,0.00019178,2]
[338427750,1726631446378,-2121.29,0.00019178,2]
[338427751,1726631446387,-500.0,0.00019178,2]
[338427752,1726631446396,-2121.29,0.00019178,2]
[338427753,1726631446405,-2121.29,0.00019178,2]
[338427754,1726631446416,-2121.29,0.00019178,2]
[338427755,1726631446426,-2121.38618046,0.00019178,2]
[338427756,1726631446435,-527.71,0.00019178,2]
[338427757,1726631446445,-151.0,0.00019178,2]
[338427758,1726631446455,-500.0,0.00019178,2]
[338427759,1726631446464,-181.233135,0.00019178,2]
[338427760,1726631446473,-329.90250438,0.00019178,2]
[338427761,1726631446482,-152.367596,0.00019178,2]
[338427762,1726631446491,-500.0,0.00019178,2]
[338427763,1726631446501,-1591.88,0.00019178,2]
[338427765,1726631446511,-500.0,0.00019178,2]
[338427767,1726631446520,-500.0,0.00019178,2]
[338427768,1726631446530,-501.7,0.00019178,2]
[338427770,1726631446540,-536.08,0.00019178,2]
[338427772,1726631446549,-576.42,0.00019178,2]
[338427773,1726631446558,-2291.99,0.00019178,2]
[338427775,1726631446568,-512.02735069,0.00019178,2]
[338427777,1726631446577,-500.0,0.00019178,2]
[338427779,1726631446587,-634.33,0.00019178,2]
[338427780,1726631446597,-500.0,0.00019178,2]
[338427782,1726631446606,-500.0974355,0.00019178,2]
[338427784,1726631446615,-264.603723,0.00019178,2]
[338427785,1726631446624,-500.0,0.00019178,2]
[338427786,1726631446634,-151.0,0.00019178,2]
[338427787,1726631446643,-500.0,0.00019178,2]
[338427788,1726631446652,-151.0,0.00019178,2]
[338427789,1726631446662,-500.0,0.00019178,2]
[338427790,1726631446671,-500.0,0.00019178,2]
[338427791,1726631446680,-500.0,0.00019178,2]
[338427792,1726631446690,-500.0,0.00019178,2]
[338427793,1726631446699,-500.0,0.00019178,2]
[338427794,1726631446710,-1133.38,0.00019178,2]
[338427795,1726631446720,-500.0,0.00019178,2]
[338427796,1726631446730,-500.0,0.00019178,2]
[338427797,1726631446740,-500.0,0.00019178,2]
[338427798,1726631446750,-500.0,0.00019178,2]
[338427799,1726631446760,-500.0,0.00019178,2]
[338427800,1726631446770,-500.0,0.00019178,2]
[338427801,1726631446779,-395.7,0.00019178,2]
[338427802,1726631446788,-548.68,0.00019178,2]
[338427803,1726631446799,-500.0,0.00019178,2]
[338427804,1726631446809,-500.0,0.00019178,2]
[338427805,1726631446818,-1045.29,0.00019178,2]
[338427806,1726631446827,-4271.23,0.00019178,2]
[338427807,1726631446839,-496.18891021,0.00019178,2]
[338427808,1726631446848,-500.0,0.00019178,2]
[338427809,1726631446859,-151.0,0.00019178,2]
[338427810,1726631446869,-151.0,0.00019178,2]
[338427811,1726631446878,-500.0,0.00019178,2]
[338427812,1726631446888,-1880.57,0.00019178,2]
[338427813,1726631446897,-500.0,0.00019178,2]
[338427814,1726631446906,-230.29370128,0.00019178,2]
[338427815,1726631446916,-500.0,0.00019178,2]
[338427816,1726631446925,-500.0,0.00019178,2]
[338427817,1726631446935,-500.0,0.00019178,2]
[338427818,1726631446945,-213.87774882,0.00019178,2]
[338427819,1726631446955,-151.0,0.00019178,2]
[338427820,1726631446965,-500.0,0.00019178,2]
[338427821,1726631446975,-500.0,0.00019178,2]
[338427822,1726631446985,-500.0,0.00019178,2]
[338427823,1726631446995,-500.0,0.00019178,2]
[338427824,1726631447005,-500.0,0.00019178,2]
[338427825,1726631447014,-500.0,0.00019178,2]
[338427826,1726631447026,-539.04281045,0.00019178,2]
[338427827,1726631447036,-151.0,0.00019178,2]
[338427828,1726631447045,-500.0,0.00019178,2]
[338427829,1726631447055,-500.0,0.00019178,2]
[338427830,1726631447064,-500.0,0.00019178,2]
[338427831,1726631447075,-151.0,0.00019178,2]
[338427832,1726631447084,-151.0,0.00019178,2]
[338427833,1726631447094,-567.75,0.00019178,2]
[338427834,1726631447103,-500.0,0.00019178,2]
[338427835,1726631447113,-500.0,0.00019178,2]
[338427836,1726631447122,-900.96,0.00019178,2]
[338427837,1726631447133,-956.21,0.00019178,2]
[338427838,1726631447148,-500.0,0.00019178,2]
[338427839,1726631447158,-2303.44,0.00019178,2]
[338427840,1726631447167,-500.0,0.00019178,2]
[338427841,1726631447176,-1996.37,0.00019178,2]
[338427842,1726631447376,-985.95,0.00019178,2]
[338427843,1726631447386,-500.0,0.00019178,2]
[338427844,1726631447396,-500.0,0.00019178,2]
[338427845,1726631447405,-226.80605328,0.00019178,2]
[338427846,1726631447416,-500.0,0.00019178,2]
[338427847,1726631447425,-500.0,0.00019178,2]
[338427848,1726631447435,-1635.02,0.00019178,2]
[338427849,1726631447444,-151.0,0.00019178,2]
[338427850,1726631447455,-151.0,0.00019178,2]
[338427851,1726631447466,-2426.28,0.00019178,2]
[338427852,1726631447475,-634.64,0.00019178,2]
[338427853,1726631447485,-3235.82,0.00019178,2]
[338427854,1726631447496,-500.0,0.00019178,2]
[338427855,1726631447505,-770.75,0.00019178,2]
[338427856,1726631447515,-500.0,0.00019178,2]
[338427857,1726631447525,-1099.97,0.00019178,2]
[338427858,1726631447534,-158.89598799,0.00019178,2]
[338427859,1726631447544,-500.0,0.00019178,2]
[338427860,1726631447553,-500.0,0.00019178,2]
[338427861,1726631447564,-500.0,0.00019178,2]
[338427862,1726631447574,-518.52633962,0.00019178,2]
[338427863,1726631447583,-1792.34,0.00019178,2]
[338427864,1726631447594,-1761.0,0.00019178,2]
[338427865,1726631447604,-886.09,0.00019178,2]
[338427866,1726631447614,-718.77,0.00019178,2]
[338427867,1726631447624,-1135.1,0.00019178,2]
[338427868,1726631447633,-500.0,0.00019178,2]
[338427869,1726631447642,-151.0,0.00019178,2]
[338427870,1726631447652,-571.98,0.00019178,2]
[338427871,1726631447662,-151.0,0.00019178,2]
[338427872,1726631447671,-500.0,0.00019178,2]
[338427873,1726631447681,-500.0,0.00019178,2]
[338427874,1726631447690,-151.0,0.00019178,2]
[338427875,1726631447699,-151.0,0.00019178,2]
[338427876,1726631447709,-1983.81,0.00019178,2]
[338427877,1726631447719,-500.0,0.00019178,2]
[338427878,1726631447728,-10405.41,0.00019178,2]
[338427879,1726631447738,-500.0,0.00019178,2]
[338427880,1726631447747,-500.0,0.00019178,2]
[338427881,1726631447757,-794.54,0.00019178,2]
[338427882,1726631447766,-876.27,0.00019178,2]
[338427883,1726631447776,-155.562212,0.00019178,2]
[338427884,1726631447785,-500.0,0.00019178,2]
[338427885,1726631447794,-2461.18,0.00019178,2]
[338427886,1726631447803,-500.0,0.00019178,2]
[338427887,1726631447812,-936.61,0.00019178,2]
[338427888,1726631447823,-500.0,0.00019178,2]
[338427889,1726631447832,-500.0,0.00019178,2]
[338427890,1726631447842,-500.0,0.00019178,2]
[338427891,1726631447853,-500.0,0.00019178,2]
[338427892,1726631447862,-500.0,0.00019178,2]
[338427893,1726631447871,-1179.8,0.00019178,2]
[338427894,1726631447880,-500.0,0.00019178,2]
[338427895,1726631447890,-585.08,0.00019178,2]
[338427896,1726631447899,-849.49,0.00019178,2]
[338427897,1726631447909,-738.02,0.00019178,2]
[338427898,1726631447918,-2620.68,0.00019178,2]
[338427899,1726631447928,-849.49,0.00019178,2]
[338427900,1726631447937,-849.49,0.00019178,2]
[338427901,1726631447947,-500.0,0.00019178,2]
[338427902,1726631447956,-500.0,0.00019178,2]
[338427903,1726631447966,-849.49,0.00019178,2]
[338427904,1726631447975,-849.49,0.00019178,2]
[338427905,1726631447984,-849.49,0.00019178,2]
[338427906,1726631447993,-500.0,0.00019178,2]
[338427907,1726631448004,-849.49,0.00019178,2]
[338427908,1726631448013,-849.49,0.00019178,2]
[338427909,1726631448025,-849.49,0.00019178,2]
[338427910,1726631448034,-849.49,0.00019178,2]
[338427911,1726631448043,-849.49,0.00019178,2]
[338427912,1726631448053,-500.0,0.00019178,2]
[338427913,1726631448062,-500.0,0.00019178,2]
[338427914,1726631448072,-849.49,0.00019178,2]
[338427915,1726631448081,-500.0,0.00019178,2]
[338427916,1726631448091,-571.99,0.00019178,2]
[338427917,1726631448101,-674.86,0.00019178,2]
[338427918,1726631448110,-849.49,0.00019178,2]
[338427919,1726631448119,-849.49,0.00019178,2]
[338427920,1726631448128,-849.49,0.00019178,2]
[338427921,1726631448137,-3428.87,0.00019178,2]
[338427922,1726631448147,-849.49,0.00019178,2]
[338427923,1726631448156,-849.49,0.00019178,2]
[338427924,1726631448165,-849.49,0.00019178,2]
[338427925,1726631448175,-849.49,0.00019178,2]
[338427926,1726631448186,-849.49,0.00019178,2]
[338427927,1726631448195,-849.49,0.00019178,2]
[338427928,1726631448204,-2266.95,0.00019178,2]
[338427929,1726631448214,-849.49,0.00019178,2]
[338427930,1726631448223,-849.49,0.00019178,2]
[338427931,1726631448232,-849.64,0.00019178,2]
[338427932,1726631448241,-500.0,0.00019178,2]
[338427933,1726631448251,-537.23,0.00019178,2]
[338427934,1726631448260,-818.99,0.00019178,2]
[338427935,1726631448270,-536.18,0.00019178,2]
[338427936,1726631448281,-500.0,0.00019178,2]
[338427937,1726631448291,-500.0,0.00019178,2]
[338427938,1726631448300,-500.0,0.00019178,2]
[338427939,1726631448309,-3156.69,0.00019178,2]
[338427940,1726631448319,-764.32,0.00019178,2]
[338427941,1726631448328,-5330.16,0.00019178,2]
[338427942,1726631448338,-500.0,0.00019178,2]
[338427943,1726631448347,-500.0,0.00019178,2]
[338427944,1726631448357,-669.33,0.00019178,2]
[338427945,1726631448366,-747.16,0.00019178,2]
[338427946,1726631448375,-500.0,0.00019178,2]
[338427947,1726631448384,-500.0,0.00019178,2]
[338427948,1726631448394,-505.85601518,0.00019178,2]
[338427949,1726631448403,-2223.46,0.00019178,2]
[338427950,1726631448412,-500.0,0.00019178,2]
[338427951,1726631448421,-3721.54,0.00019178,2]
[338427952,1726631448431,-1168.88,0.00019178,2]
[338427953,1726631448441,-862.76,0.00019178,2]
[338427954,1726631448450,-2035.09,0.00019178,2]
[338427955,1726631448460,-500.0,0.00019178,2]
[338427956,1726631448470,-500.0,0.00019178,2]
[338427957,1726631448480,-500.0,0.00019178,2]
[338427958,1726631448490,-500.0,0.00019178,2]
[338427959,1726631448501,-500.0,0.00019178,2]
[338427960,1726631448511,-2635.8,0.00019178,2]
[338427961,1726631448522,-1252.14,0.00019178,2]
[338427962,1726631448532,-500.0,0.00019178,2]
[338427963,1726631448541,-547.78,0.00019178,2]
[338427964,1726631448551,-500.0,0.00019178,2]
[338427965,1726631448560,-500.0,0.00019178,2]
[338427966,1726631448570,-500.0,0.00019178,2]
[338427967,1726631448580,-2489.56,0.00019178,2]
[338427968,1726631448591,-565.77,0.00019178,2]
[338427969,1726631448601,-524.97,0.00019178,2]
[338427970,1726631448611,-500.0,0.00019178,2]
[338427971,1726631448620,-500.0,0.00019178,2]
[338427972,1726631448630,-2029.26,0.00019178,2]
[338427973,1726631448639,-500.0,0.00019178,2]
[338427974,1726631448649,-500.0,0.00019178,2]
[338427975,1726631448659,-179.72547602,0.00019178,2]
[338427976,1726631448669,-500.0,0.00019178,2]
[338427977,1726631448678,-1026.26,0.00019178,2]
[338427978,1726631448688,-1896.54,0.00019178,2]
[338427979,1726631448697,-1147.21,0.00019178,2]
[338427980,1726631448706,-500.0,0.00019178,2]
[338427981,1726631448715,-3029.28,0.00019178,2]
[338427982,1726631448725,-500.0,0.00019178,2]
[338427983,1726631448734,-1540.63,0.00019178,2]
[338427984,1726631448743,-1579.12,0.00019178,2]
[338427985,1726631448753,-501.94453394,0.00019178,2]
[338427986,1726631448764,-1270.0,0.00019178,2]
[338427987,1726631448774,-500.0,0.00019178,2]
[338427988,1726631448784,-178.69640053,0.00019178,2]
[338427989,1726631448794,-500.0,0.00019178,2]
[338427990,1726631448803,-500.0,0.00019178,2]
[338427991,1726631448813,-518.37211877,0.00019178,2]
[338427992,1726631448822,-500.0,0.00019178,2]
[338427993,1726631448832,-500.0,0.00019178,2]
[338427994,1726631448845,-500.0,0.00019178,2]
[338427995,1726631448854,-2571.5,0.00019178,2]
[338427996,1726631448863,-500.0,0.00019178,2]
[338427997,1726631448872,-500.0,0.00019178,2]
[338427998,1726631448882,-500.0,0.00019178,2]
[338427999,1726631448891,-166.642268,0.00019178,2]
[338428000,1726631448901,-166.642268,0.00019178,2]
[338428001,1726631448910,-500.0,0.00019178,2]
[338428002,1726631448919,-500.0,0.00019178,2]
[338428003,1726631448929,-500.0,0.00019178,2]
[338428004,1726631448940,-500.0,0.00019178,2]
[338428005,1726631448950,-500.0,0.00019178,2]
[338428006,1726631448959,-500.50053108,0.00019178,2]
[338428007,1726631448968,-500.0,0.00019178,2]
[338428008,1726631448978,-1697.64,0.00019178,2]
[338428009,1726631448988,-166.642268,0.00019178,2]
[338428010,1726631448998,-166.642268,0.00019178,2]
[338428011,1726631449008,-500.0,0.00019178,2]
[338428012,1726631449017,-1478.56,0.00019178,2]
[338428013,1726631449030,-995.44,0.00019178,2]
[338428014,1726631449040,-1468.42,0.00019178,2]
[338428015,1726631449049,-303.39703546,0.00019178,2]
[338428016,1726631449059,-500.0,0.00019178,2]
[338428017,1726631449068,-2845.18,0.00019178,2]
[338428018,1726631449077,-500.0,0.00019178,2]
[338428019,1726631449088,-500.0,0.00019178,2]
[338428020,1726631449097,-500.0,0.00019178,2]
[338428021,1726631449106,-500.0,0.00019178,2]
[338428022,1726631449116,-500.0,0.00019178,2]
[338428023,1726631449125,-500.0,0.00019178,2]
[338428024,1726631449134,-2690.62,0.00019178,2]
[338428025,1726631449144,-500.0,0.00019178,2]
[338428026,1726631449154,-267.07155914,0.00019178,2]
[338428027,1726631449164,-1430.74,0.00019178,2]
[338428028,1726631449173,-706.04,0.00019178,2]
[338428029,1726631449183,-6050.51,0.00019178,2]
[338428030,1726631449192,-2229.25,0.00019178,2]
[338428031,1726631449202,-1616.01,0.00019178,2]
[338428032,1726631449211,-500.0,0.00019178,2]
[338428033,1726631449221,-180.178352,0.00019178,2]
[338428034,1726631449231,-1393.91,0.00019178,2]
[338428035,1726631449240,-180.178352,0.00019178,2]
[338428036,1726631449250,-2285.4,0.00019178,2]
[338428037,1726631449259,-4882.15,0.00019178,2]
[338428038,1726631449268,-533.73269536,0.00019178,2]
[338428039,1726631449278,-890.17,0.00019178,2]
[338428040,1726631449287,-180.178352,0.00019178,2]
[338428041,1726631449296,-500.0,0.00019178,2]
[338428042,1726631449306,-500.0,0.00019178,2]
[338428043,1726631449315,-500.0,0.00019178,2]
[338428044,1726631449324,-180.178352,0.00019178,2]
[338428045,1726631449334,-500.0,0.00019178,2]
[338428046,1726631449345,-567.2668096,0.00019178,2]
[338428047,1726631449354,-4417.11,0.00019178,2]
[338428048,1726631449364,-500.0,0.00019178,2]
[338428049,1726631449374,-500.0,0.00019178,2]
[338428050,1726631449383,-2293.87,0.00019178,2]
[338428051,1726631449392,-632.18,0.00019178,2]
[338428052,1726631449402,-500.0,0.00019178,2]
[338428053,1726631449412,-1058.44,0.00019178,2]
[338428054,1726631449421,-500.0,0.00019178,2]
[338428055,1726631449432,-2316.63,0.00019178,2]
[338428056,1726631449443,-1215.15,0.00019178,2]
[338428057,1726631449452,-500.0,0.00019178,2]
[338428058,1726631449462,-2027.24,0.00019178,2]
[338428059,1726631449471,-500.0,0.00019178,2]
[338428060,1726631449480,-627.05274603,0.00019178,2]
[338428061,1726631449489,-500.0,0.00019178,2]
[338428062,1726631449499,-804.71,0.00019178,2]
[338428063,1726631449508,-10340.94,0.00019178,2]
[338428064,1726631449518,-500.0,0.00019178,2]
[338428065,1726631449527,-500.0,0.00019178,2]
[338428066,1726631449537,-500.0,0.00019178,2]
[338428067,1726631449547,-920.91,0.00019178,2]
[338428068,1726631449556,-566.19,0.00019178,2]
[338428069,1726631449565,-976.43,0.00019178,2]
[338428070,1726631449575,-500.0,0.00019178,2]
[338428071,1726631449584,-670.11,0.00019178,2]
[338428072,1726631449595,-500.0,0.00019178,2]
[338428073,1726631449604,-500.0,0.00019178,2]
[338428074,1726631449613,-2524.21,0.00019178,2]